fUSD/lending_fUSD_20251019
["ID","MTS","AMOUNT","RATE_DAILY","PERIOD"]
[391806477,1760860239985,-639.4219832,0.00015,2]
[391806478,1760860240037,-819669.8823737,0.00015,2]
[391806479,1760860240047,-552588.72251767,0.00015,2]
[391806480,1760860240094,-533.0,0.00015,2]
[391806481,1760860240138,-27045.13894574,0.00015,2]
[391806485,1760860242857,-177938.84809301,0.00015,2]
[391806486,1760860242866,-529.94810543,0.00015,2]
[391806487,1760860242876,-240.66618263,0.00015,2]
[391806488,1760860242885,-22682.0082664,0.00015,2]
[391806489,1760860242894,-166.424887,0.00015,2]
[391806490,1760860242903,-150.0,0.00015009,2]
[391806491,1760860242912,-296.0184112,0.00015009,2]
[391806492,1760860242921,-500.0,0.00015009,2]
[391806493,1760860242931,-244.86195821,0.00015009,2]
[391806494,1760860242939,-150.0,0.0001501,5]
[391806495,1760860242949,-150.0,0.0001501,5]
[391806496,1760860242958,-150.0,0.0001501,5]
[391806497,1760860242967,-500.0,0.0001501,5]
[391806498,1760860242976,-500.0,0.0001501,5]
[391806499,1760860242985,-250.0,0.0001501,5]
[391806500,1760860242994,-500.0,0.0001501,5]
[391806501,1760860243003,-201.5261164,0.00015028,2]
[391806502,1760860243012,-150.0,0.00015028,2]
[391806503,1760860243021,-203.6011519,0.00015028,2]
[391806504,1760860243031,-150.0,0.00015028,2]
[391806505,1760860243041,-150.0,0.00015028,2]
[391806506,1760860243050,-150.0,0.00015028,2]
[391806507,1760860243059,-500.0,0.00015028,2]
[391806508,1760860243068,-150.0,0.00015028,2]
[391806509,1760860243078,-500.0,0.00015028,2]
[391806510,1760860243087,-150.0,0.00015028,2]
[391806511,1760860243100,-215.0,0.00015048,2]
[391806512,1760860243110,-150.0,0.00015063,2]
[391806513,1760860243119,-500.0,0.00015063,2]
[391806514,1760860243130,-292.21385173,0.00015064,5]
[391806515,1760860243139,-150.0,0.00015064,5]
[391806516,1760860243148,-214.07012202,0.00015064,5]
[391806517,1760860243157,-416.89683447,0.00015064,5]
[391806518,1760860243168,-209.26374058,0.00015064,5]
[391806519,1760860243177,-500.0,0.00015064,5]
[391806520,1760860243186,-217.62640907,0.00015083,2]
[391806521,1760860243195,-150.0,0.00015083,2]
[391806522,1760860243204,-500.0,0.00015083,2]
[391806523,1760860243214,-150.0,0.00015083,2]
[391806524,1760860243223,-500.0,0.00015083,2]
[391806525,1760860243232,-150.0,0.00015083,2]
[391806526,1760860243241,-210.41207324,0.00015118,2]
[391806527,1760860243250,-285.97843983,0.00015118,2]
[391806528,1760860243260,-200.0,0.00015119,5]
[391806529,1760860243269,-358.56407877,0.00015119,5]
[391806530,1760860243278,-386.07127812,0.00015123,2]
[391806531,1760860243300,-511.23105439,0.00015123,2]
[391806532,1760860243314,-274.48345718,0.00015123,2]
[391806533,1760860243324,-215.0,0.00015132,2]
[391806534,1760860243333,-150.0,0.00015137,2]
[391806535,1760860243342,-500.0,0.00015137,2]
[391806536,1760860243351,-500.0,0.00015137,2]
[391806537,1760860243361,-203.78331585,0.00015137,2]
[391806538,1760860243370,-166.66,0.00015143,2]
[391806539,1760860243379,-215.0,0.00015161,2]
[391806540,1760860243388,-473.0,0.00015164,2]
[391806541,1760860243397,-367.0,0.00015192,2]
[391806542,1760860243407,-500.0,0.00015192,2]
[391806543,1760860243416,-1793.0,0.00015195,2]
[391806544,1760860243425,-168.0,0.00015246,2]
[391806545,1760860243434,-500.0,0.00015247,2]
[391806546,1760860243443,-500.0,0.00015302,2]
[391806547,1760860243452,-500.0,0.00015357,2]
[391806548,1760860243461,-2266.63348,0.0001537,2]
[391806549,1760860243470,-2266.63348,0.0001538,2]
[391806550,1760860243479,-2266.63348,0.0001539,2]
[391806551,1760860243488,-2266.63348,0.000154,2]
[391806552,1760860243497,-2266.63348,0.0001541,2]
[391806553,1760860243510,-2266.63348,0.0001541,2]
[391806554,1760860243520,-500.0,0.00015411,2]
[391806555,1760860243529,-1000.0,0.00015421,2]
[391806556,1760860243538,-500.0,0.00015466,2]
[391806557,1760860243548,-1000.0,0.00015521,2]
[391806558,1760860243557,-501.28915667,0.00015521,2]
[391806559,1760860243566,-500.0,0.00015521,2]
[391806560,1760860243575,-500.0,0.00015576,2]
[391806561,1760860243584,-604.0,0.00015631,2]
[391806562,1760860243594,-215.0,0.00015631,2]
[391806563,1760860243603,-166.66,0.00015643,2]
[391806564,1760860243612,-215.0,0.00015799,2]
[391806565,1760860243621,-215.0,0.00015894,2]
[391806566,1760860243630,-215.0,0.00015947,2]
[391806567,1760860243640,-503.7698145,0.00015968,2]
[391806568,1760860243650,-1319.67,0.00015985,2]
[391806569,1760860243659,-166.66,0.00016143,2]
[391806570,1760860243668,-5000.00526496,0.000162,5]
[391806571,1760860243677,-420.0,0.000162,2]
[391806572,1760860243686,-500.0,0.00016269,2]
[391806573,1760860243695,-872.81384913,0.00016279,2]
[391806574,1760860243705,-300.0,0.00016279,2]
[391806575,1760860243714,-1680.0,0.00016279,2]
[391806576,1760860243723,-195.0,0.0001628,2]
[391806577,1760860243732,-250.0,0.0001628,2]
[391806578,1760860243742,-166.66,0.00016643,2]
[391806579,1760860243751,-214.34,0.00016667,2]
[391806580,1760860243760,-2774.12399718,0.00016744,2]
[391806581,1760860243769,-10768.28852607,0.00016833,2]
[391806582,1760860243778,-5061.0401369,0.00016918,2]
[391806583,1760860243788,-160.0,0.00017,3]
[391806584,1760860243798,-18446.97056766,0.00017065,2]
[391806585,1760860243807,-166.66,0.00017143,2]
[391806586,1760860243816,-277.35679052,0.00017193,2]
[391806587,1760860243826,-24233.0940831,0.00017225,2]
[391806588,1760860243835,-1129.2706962,0.00017346,2]
[391806589,1760860243844,-500.0,0.00017639,2]
[391806590,1760860243854,-166.66,0.00017643,2]
[391806591,1760860243863,-374.0,0.00017734,2]
[391806592,1760860243872,-2351.0,0.00017907,2]
[391806593,1760860243882,-558.35706417,0.00017908,2]
[391806594,1760860243891,-250.0,0.00018245,2]
[391806595,1760860243901,-150.0,0.00018399,2]
[391806596,1760860243910,-1116.1,0.00018415,2]
[391806597,1760860243920,-475.85866102,0.00018433,2]
[391806598,1760860243929,-666.0,0.00018462,3]
[391806599,1760860243938,-1000.0,0.00018487,2]
[391806600,1760860243947,-150.99,0.00018533,2]
[391806601,1760860243956,-9999.99,0.00018533,2]
[391806602,1760860243965,-9999.99,0.00018533,2]
[391806603,1760860243975,-999.99,0.00018533,2]
[391806604,1760860243984,-8273.96,0.00018533,2]
[391806605,1760860243993,-150.99,0.00018533,2]
[391806606,1760860244002,-506.64,0.00018533,2]
[391806607,1760860244011,-13463.08,0.00018533,2]
[391806608,1760860244021,-9999.99,0.00018533,2]
[391806609,1760860244030,-3641.55,0.00018533,2]
[391806610,1760860244039,-9106.4,0.00018533,2]
[391806611,1760860244049,-7265.13,0.00018533,2]
[391806612,1760860244058,-499.99,0.00018533,2]
[391806613,1760860244068,-86174.17,0.00018533,2]
[391806614,1760860244077,-9999.99,0.00018533,2]
[391806615,1760860244086,-287.61899177,0.00018562,2]
[391806616,1760860244098,-2774.12399718,0.00018689,2]
[391806617,1760860244107,-10768.28852607,0.00018767,2]
[391806618,1760860244117,-151.29,0.000188,2]
[391806619,1760860244127,-1490.95,0.00018836,2]
[391806620,1760860244136,-502.78603516,0.00018973,2]
[391806621,1760860244145,-149550.74690793,0.00019,2]
[391806622,1760860244155,-136743.59108503,0.00019,2]
[391806623,1760860244164,-352.35385313,0.00019,2]
[391806624,1760860244173,-1299.971045,0.00019,2]
[391806625,1760860244183,-1299.971045,0.00019,2]
[391806626,1760860244192,-1299.971045,0.00019,2]
[391806627,1760860244202,-1299.971045,0.00019,2]
[391806628,1760860244211,-151.0,0.00019,2]
[391806629,1760860244220,-250.0,0.00019331,2]
[391806630,1760860244230,-151.0,0.00019339,7]
[391806631,1760860244239,-271.458842,0.00019339,7]
[391806632,1760860244248,-152.58421,0.00019339,7]
[391806633,1760860244258,-151.722293,0.00019339,7]
[391806634,1760860244267,-152.759565,0.00019339,7]
[391806635,1760860244277,-151.0,0.00019339,7]
[391806636,1760860244287,-151.0,0.00019339,7]
[391806637,1760860244296,-151.0,0.00019339,7]
[391806638,1760860244305,-151.0,0.00019339,7]
[391806639,1760860244314,-151.0,0.00019339,7]
[391806640,1760860244325,-151.0,0.00019339,7]
[391806641,1760860244334,-151.0,0.00019339,7]
[391806642,1760860244344,-151.0,0.00019339,7]
[391806643,1760860244353,-155.537237,0.00019339,7]
[391806644,1760860244363,-151.0,0.00019339,7]
[391806645,1760860244372,-151.0,0.00019339,7]
[391806646,1760860244381,-151.0,0.00019339,7]
[391806647,1760860244391,-151.0,0.00019339,7]
[391806648,1760860244400,-24233.0940831,0.00019394,2]
[391806649,1760860244410,-1572.0,0.00019697,2]
[391806650,1760860244419,-2000.0,0.000197,2]
[391806651,1760860244428,-176.74698588,0.00019705,2]
[391806652,1760860244438,-20833.29142861,0.00019708,2]
[391806653,1760860244447,-200.0,0.00019815,2]
[391806654,1760860244456,-298.26089446,0.00019931,2]
[391806655,1760860244465,-300.0,0.0002,7]
[391806656,1760860244474,-365.84,0.00020156,2]
[391806657,1760860244484,-151.03,0.00020181,2]
[391806658,1760860244493,-321.22,0.00020187,2]
[391806659,1760860244502,-4058.52419125,0.00020482,2]
[391806660,1760860244511,-175.72,0.00020619,2]
[391806661,1760860244521,-2454.87265986,0.00020633,2]
[391806662,1760860244535,-319.25133732,0.00020633,2]
[391806663,1760860244544,-558.48189957,0.000207,2]
[391806664,1760860244555,-390.56676311,0.000207,2]
[391806665,1760860245863,-500.0,0.00014799,2]
[391806666,1760860245873,-500.0,0.00014799,2]
[391806667,1760860245883,-500.0,0.00014799,2]
[391806668,1760860245892,-500.0,0.00014799,2]
[391806670,1760860245901,-500.0,0.00014799,2]
[391806672,1760860245911,-500.0,0.00014799,2]
[391806673,1760860245920,-500.0,0.00014799,2]
[391806675,1760860245929,-500.0,0.00014799,2]
[391806677,1760860245938,-500.0,0.00014799,2]
[391806679,1760860245947,-500.0,0.00014799,2]
[391806681,1760860245957,-400.0,0.00014799,2]
[391806682,1760860245966,-2991.58962568,0.000207,2]
[391806683,1760860245977,-1773.39997,0.000207,2]
[391806686,1760860331072,1327.22,0.00025187,120]
[391806687,1760860331278,1327.22,0.00027706,120]
[391806688,1760860352432,1050.0627,0.000147,2]
[391806689,1760860562803,-150.0,0.00014798,2]
[391806690,1760860562828,-300.0,0.00014798,2]
[391806691,1760860562853,-1200.0,0.00014798,2]
[391806692,1760860562880,-613.3368905,0.00014799,2]
[391806693,1760860562905,-187.80836549,0.00014799,2]
[391806694,1760860562930,-301.02105307,0.00014799,2]
[391806695,1760860562953,-500.0,0.00014799,2]
[391806696,1760860562975,-500.0,0.00014799,2]
[391806697,1760860562997,-500.0,0.00014799,2]
[391806698,1760860563020,-169.28708565,0.00014799,2]
[391806699,1760860563042,-269.18983601,0.00014799,2]
[391806700,1760860563065,-500.0,0.00014799,2]
[391806701,1760860563087,-500.0,0.00014799,2]
[391806702,1760860563109,-500.0,0.00014799,2]
[391806703,1760860563131,-500.0,0.00014799,2]
[391806704,1760860563154,-500.0,0.00014799,2]
[391806705,1760860563181,-500.0,0.00014799,2]
[391806706,1760860563205,-1200.0,0.00014799,2]
[391806707,1760860563233,-500.0,0.00014799,2]
[391806708,1760860563262,-500.0,0.00014799,2]
[391806709,1760860563291,-500.0,0.00014799,2]
[391806710,1760860563318,-500.0,0.00014799,2]
[391806711,1760860563346,-500.0,0.00014799,2]
[391806712,1760860563373,-500.0,0.00014799,2]
[391806713,1760860563397,-33133.8006,0.000148,2]
[391806714,1760860563424,-278.7601,0.000148,2]
[391806715,1760860563447,-10696.79606928,0.000148,2]
[391806716,1760860598800,7942.8546,0.000147,2]
[391806717,1760860613500,-500.0,0.00014799,2]
[391806718,1760860613528,-500.0,0.00014799,2]
[391806719,1760860613551,-83000.0,0.000148,2]
[391806720,1760860661618,-151.0,0.00014791,2]
[391806721,1760860661642,-151.0,0.00014791,2]
[391806722,1760860661664,-151.0,0.00014791,2]
[391806723,1760860661688,-151.0,0.00014791,2]
[391806724,1760860661711,-151.0,0.00014791,2]
[391806725,1760860661734,-151.0,0.00014791,2]
[391806726,1760860661756,-151.0,0.00014791,2]
[391806727,1760860661780,-151.0,0.00014791,2]
[391806728,1760860661802,-151.0,0.00014791,2]
[391806729,1760860661825,-260.37150288,0.00014791,2]
[391806730,1760860661849,-151.0,0.00014791,2]
[391806731,1760860661872,-151.0,0.00014791,2]
[391806732,1760860661896,-151.0,0.00014791,2]
[391806733,1760860661920,-151.0,0.00014791,2]
[391806734,1760860661944,-151.0,0.00014791,2]
[391806735,1760860661968,-151.0,0.00014791,2]
[391806736,1760860661991,-151.0,0.00014791,2]
[391806737,1760860662012,-200.0,0.00014791,2]
[391806738,1760860662035,-200.0,0.00014791,2]
[391806739,1760860662059,-151.0,0.00014791,2]
[391806740,1760860662081,-500.0,0.00014791,2]
[391806741,1760860662103,-154.99182914,0.00014791,2]
[391806742,1760860662126,-151.0,0.00014791,2]
[391806743,1760860662150,-500.0,0.00014791,2]
[391806744,1760860662173,-151.0,0.00014791,2]
[391806745,1760860662195,-151.0,0.00014791,2]
[391806746,1760860662223,-520.57989672,0.00014791,2]
[391806747,1760860662247,-182.74839534,0.00014791,2]
[391806748,1760860662270,-151.0,0.00014791,2]
[391806749,1760860662294,-276.4752803,0.00014791,2]
[391806750,1760860662489,-200.0,0.00014791,2]
[391806751,1760860662516,-500.0,0.00014799,2]
[391806752,1760860662539,-150.0,0.00014799,2]
[391806753,1760860662566,-500.0,0.00014799,2]
[391806754,1760860662589,-88683.83309562,0.000148,2]
[391806756,1760860682668,-10290.3625351,0.000148,2]
[391806757,1760860682691,-1000.0,0.000148,2]
[391806758,1760860682712,-4056.1107,0.000148,2]
[391806759,1760860682734,-2132.53,0.000148,2]
[391806760,1760860682755,-233.5003,0.000148,2]
[391806761,1760860682777,-300.0,0.0001628,2]
[391806762,1760860682801,-265.98258031,0.00017193,2]
[391806763,1760860682825,-15721.51388459,0.00019384,2]
[391806764,1760860719507,-20434.7156323,0.00015083,2]
[391806765,1760860719537,-9565.2843677,0.00016988,2]
[391806766,1760860725601,1305.3703,0.000147,2]
[391806767,1760860757711,-887.7849878,0.00015191,2]
[391806768,1760860757735,-10869.4312646,0.00016988,2]
[391806769,1760860757756,-887.7849878,0.00017108,2]
[391806770,1760860757780,-20434.7156323,0.00018893,2]
[391806771,1760860757803,-887.7849878,0.00019025,2]
[391806772,1760860757829,-500.0,0.00019383,2]
[391806773,1760860757859,-500.0,0.00019383,2]
[391806774,1760860757884,-622.1064028,0.00019383,2]
[391806775,1760860757907,-27410.3917369,0.00019384,2]
[391806776,1760860762269,184.8193,0.00014699,2]
[391806777,1760860786797,1000.0,0.000147,2]
[391806778,1760860788371,-493.1588286,0.00019361,2]
[391806779,1760860788396,-4346.78205051,0.00019384,2]
[391806780,1760860788419,-171.47,0.00019535,2]
[391806781,1760860788444,-800.28866222,0.00019601,2]
[391806782,1760860788467,-156.03,0.00019624,2]
[391806783,1760860788495,-500.0,0.00019699,2]
[391806784,1760860788518,-2000.0,0.000197,2]
[391806785,1760860788542,-166.66,0.00019739,2]
[391806786,1760860788745,-2223.19,0.00019739,2]
[391806787,1760860788769,-150.99,0.00019739,2]
[391806788,1760860788792,-228.02,0.00019869,2]
[391806789,1760860788815,-999.99,0.00019869,2]
[391806790,1760860788838,-800.28866222,0.00019944,2]
[391806791,1760860793360,2963.13179645,0.00019284,2]
[391806792,1760860838885,180.0122,0.000147,2]
[391806793,1760860844990,180.4704,0.000147,2]
[391806794,1760860896106,3286.2894,0.000147,2]
[391806795,1760860896911,-4132.6489063,0.00015191,2]
[391806796,1760860896935,-150.68,0.00015803,2]
[391806797,1760860896961,-4132.6489063,0.00017182,2]
[391806798,1760860896985,-4132.6489063,0.00019174,2]
[391806799,1760860897009,-1009.02525228,0.00019283,2]
[391806800,1760860897037,-180.23404476,0.00019283,2]
[391806801,1760860897063,-114801.84100355,0.00019284,2]
[391806802,1760860897092,-4713.7,0.00019676,2]
[391806803,1760860897117,-176.74698588,0.00019944,2]
[391806804,1760860897141,-500.0,0.00019999,2]
[391806805,1760860897165,-500.0,0.00019999,2]
[391806806,1760860897190,-210.71473715,0.00019999,2]
[391806807,1760860897215,-394.00425298,0.00019999,2]
[391806808,1760860897238,-500.0,0.00019999,2]
[391806809,1760860897261,-638.4328852,0.00019999,2]
[391806810,1760860897284,-500.0,0.00019999,2]
[391806811,1760860897306,-500.0,0.00019999,2]
[391806812,1760860897328,-8645.0,0.0002,2]
[391806813,1760860897352,-9922.45,0.00020011,2]
[391806814,1760860897379,-576.22243923,0.00020078,2]
[391806815,1760860897401,-1938.03,0.00020145,2]
[391806816,1760860897424,-10133.63,0.00020145,2]
[391806817,1760860897448,-221.21,0.00020145,2]
[391806818,1760860897473,-1327.22,0.00020149,2]
[391806819,1760860897497,-166.66,0.00020155,2]
[391806820,1760860897521,-800.28866223,0.0002034,2]
[391806821,1760860897548,-1000.0,0.0002039,2]
[391806822,1760860897571,-750.43255,0.0002049,2]
[391806823,1760860897594,-500.0,0.00020534,2]
[391806824,1760860897618,-166.66,0.0002057,2]
[391806825,1760860897641,-500.0,0.00020679,2]
[391806826,1760860897666,-820.0,0.00020778,2]
[391806827,1760860897694,-1000.0,0.00020798,2]
[391806828,1760860897724,-20434.7156323,0.00020798,2]
[391806829,1760860897749,-1000.0,0.00020827,2]
[391806830,1760860897775,-365.84,0.00020828,2]
[391806831,1760860897799,-2348.73561111,0.00020886,2]
[391806832,1760860897823,-2000.0,0.000209,7]
[391806833,1760860897846,-558.35706417,0.00020917,2]
[391806834,1760860897869,-887.7849878,0.00020942,2]
[391806835,1760860897892,-501.36065041,0.00020973,2]
[391806836,1760860897916,-500.0,0.00020973,2]
[391806837,1760860897940,-500.4575524,0.00020973,2]
[391806838,1760860897972,-500.0,0.00020973,2]
[391806839,1760860897998,-213.95570322,0.00020973,2]
[391806840,1760860898022,-596.99285627,0.00020973,2]
[391806841,1760860898046,-374.79691305,0.00020973,2]
[391806842,1760860898241,-500.0,0.00020973,2]
[391806843,1760860898265,-500.0,0.00020973,2]
[391806844,1760860898289,-174.77983413,0.00020973,2]
[391806845,1760860898313,-500.0,0.00020973,2]
[391806846,1760860898337,-501.19732905,0.00020973,2]
[391806847,1760860898363,-500.46255512,0.00020973,2]
[391806848,1760860898387,-145244.56411605,0.00020975,2]
[391806849,1760860898410,-151.0,0.00020983,2]
[391806850,1760860898438,-166.66,0.00020986,2]
[391806851,1760860908250,233.5003,0.000147,2]
[391806852,1760861005974,-205.48798768,0.00019372,2]
[391806853,1760861005996,-151.0,0.00019372,2]
[391806854,1760861006018,-151.0,0.00019372,2]
[391806855,1760861006039,-151.0,0.00019372,2]
[391806856,1760861006061,-151.0,0.00019372,2]
[391806857,1760861006083,-151.0,0.00019372,2]
[391806858,1760861006104,-151.0,0.00019372,2]
[391806859,1760861006125,-151.0,0.00019372,2]
[391806860,1760861006146,-151.0,0.00019372,2]
[391806861,1760861006167,-151.0,0.00019372,2]
[391806862,1760861006187,-151.0,0.00019372,2]
[391806863,1760861006211,-151.0,0.00019372,2]
[391806864,1760861006231,-151.0,0.00019372,2]
[391806865,1760861006252,-151.0,0.00019372,2]
[391806866,1760861006272,-151.0,0.00019372,2]
[391806867,1760861006293,-729.92260981,0.00019372,2]
[391806868,1760861006314,-151.0,0.00019372,2]
[391806869,1760861006335,-151.0,0.00019372,2]
[391806870,1760861006355,-151.0,0.00019372,2]
[391806871,1760861006376,-151.0,0.00019372,2]
[391806872,1760861006395,-151.0,0.00019372,2]
[391806873,1760861006419,-151.0,0.00019372,2]
[391806874,1760861006439,-151.0,0.00019372,2]
[391806875,1760861006465,-200.0,0.00019372,2]
[391806876,1760861006486,-151.0,0.00019372,2]
[391806877,1760861006506,-151.0,0.00019372,2]
[391806878,1760861006527,-151.0,0.00019372,2]
[391806879,1760861006547,-151.0,0.00019372,2]
[391806880,1760861006567,-151.0,0.00019372,2]
[391806881,1760861006587,-151.0,0.00019372,2]
[391806882,1760861006606,-151.0,0.00019372,2]
[391806883,1760861006626,-151.0,0.00019372,2]
[391806884,1760861006649,-65.58940251,0.00019372,2]
[391806885,1760861103930,192.0,0.00021224,120]
[391806887,1760861427296,-150.0,0.0002,2]
[391806888,1760861427322,-2261.0921837,0.0002027,2]
[391806889,1760861427347,-1000.0,0.0002039,2]
[391806890,1760861427371,-2459.0,0.0002058,2]
[391806891,1760861427394,-800.28866224,0.00020602,2]
[391806892,1760861427419,-500.0,0.00020818,2]
[391806893,1760861427445,-2843.5335901,0.00020918,2]
[391806894,1760861427470,-1294.00935,0.00020986,2]
[391806895,1760861427495,-4132.6489063,0.00021165,2]
[391806896,1760861427518,-182.0,0.00021178,2]
[391806897,1760861427542,-343.4,0.0002124,2]
[391806898,1760861427574,-2503.4,0.0002124,2]
[391806899,1760861427608,-9999.99,0.0002129,2]
[391806900,1760861427637,-9999.99,0.0002129,2]
[391806901,1760861427663,-150.99,0.0002129,2]
[391806902,1760861427691,-999.99,0.0002129,2]
[391806903,1760861427720,-20001.06,0.0002129,2]
[391806904,1760861427746,-250.0,0.0002131,2]
[391806905,1760861427771,-579.029,0.00021334,2]
[391806906,1760861427797,-1331.825,0.00021334,2]
[391806907,1760861427822,-612.34,0.00021334,2]
[391806908,1760861427846,-1601.782,0.00021334,2]
[391806909,1760861427871,-1000.0,0.00021339,2]
[391806910,1760861427896,-30329.87508459,0.0002134,2]
[391806911,1760861427921,-166.66,0.00021402,2]
[391806912,1760861427947,-11342.37,0.0002148,2]
[391806913,1760861427974,-365.84,0.000215,2]
[391806914,1760861428006,-475.82771539,0.0002164,2]
[391806915,1760861428032,-166.66,0.00021817,2]
[391806916,1760861428058,-5000.0,0.00021918,2]
[391806917,1760861428084,-10593.9271839,0.00021927,2]
[391806918,1760861428111,-819.0,0.00021963,2]
[391806919,1760861428135,-2547.0,0.00021963,2]
[391806920,1760861428159,-905.836,0.00021963,2]
[391806921,1760861428183,-1188.706,0.00021963,2]
[391806922,1760861428206,-5998.0,0.00021963,2]
[391806923,1760861428231,-6439.0,0.00021963,2]
[391806924,1760861428256,-2590.0,0.00021963,2]
[391806925,1760861428280,-1158.82100279,0.00021974,10]
[391806926,1760861428640,6481.67,0.00021963,2]
[391806935,1760861431999,-530.53,0.00022065,2]
[391806936,1760861432011,-1310.62,0.00022065,2]
[391806937,1760861432022,-1000.0,0.00022163,2]
[391806938,1760861432032,-165.263476,0.00022172,2]
[391806939,1760861432043,-200.576524,0.00022172,2]
[391806940,1760861432053,-1811.81730207,0.00022495,2]
[391806941,1760861432064,-552.00736703,0.00022495,2]
[391806942,1760861432074,-1327.22,0.00022668,2]
[391806943,1760861432084,-365.84,0.00022844,2]
[391806944,1760861432094,-1294.00936,0.00022986,2]
[391806945,1760861432104,-2843.5335901,0.00023011,2]
[391806946,1760861432113,-625.80297709,0.0002312,2]
[391806947,1760861432123,-150.49,0.00023121,2]
[391806948,1760861432132,-150.0,0.00023121,2]
[391806949,1760861432142,-150.377,0.00023121,2]
[391806950,1760861432151,-2066.451,0.00023121,2]
[391806951,1760861432161,-159.188,0.00023121,2]
[391806952,1760861432171,-1273.256,0.00023121,2]
[391806953,1760861432180,-609.9210769,0.00023121,2]
[391806954,1760861432194,-414.9125,0.00023121,2]
[391806955,1760861432205,-561.92260041,0.00023121,2]
[391806956,1760861432221,-1822.24382269,0.00023121,2]
[391806957,1760861432232,-500.0,0.00023121,2]
[391806958,1760861432241,-500.0,0.00023176,2]
[391806959,1760861432251,-201.302082,0.00023177,2]
[391806960,1760861432261,-500.0,0.00023231,2]
[391806961,1760861432271,-500.0,0.00023285,2]
[391806962,1760861432280,-155.0,0.00023287,2]
[391806963,1760861432290,-500.0,0.0002334,2]
[391806964,1760861432300,-1464.0,0.000234,2]
[391806965,1760861432310,-500.0,0.000234,2]
[391806966,1760861432320,-501.95111172,0.000234,2]
[391806967,1760861432330,-500.0,0.000234,2]
[391806968,1760861432339,-375.69831699,0.000234,2]
[391806969,1760861432351,-124.30168301,0.000234,2]
[391806970,1760861432360,-500.78466187,0.000234,2]
[391806971,1760861432370,-500.58063668,0.000234,2]
[391806972,1760861432379,-365.84,0.00023515,2]
[391806973,1760861432389,-167.46550439,0.00023707,2]
[391806974,1760861432398,-153.0,0.00023945,2]
[391806975,1760861432408,-2299.99999003,0.00024,12]
[391806976,1760861432417,-365.84,0.00024187,2]
[391806978,1760861432426,-571.0,0.00024334,2]
[391806980,1760861432436,-1310.0,0.00024334,2]
[391806982,1760861432446,-605.0,0.00024334,2]
[391806985,1760861432455,-1589.0,0.00024334,2]
[391806988,1760861432465,-1000.7231,0.00024399,2]
[391806991,1760861432474,-2413.78993776,0.00024558,2]
[391806994,1760861432484,-440.2,0.00024578,2]
[391806997,1760861432494,-1000.0,0.00024658,2]
[391807000,1760861432503,-156.9,0.00024658,2]
[391807003,1760861432513,-150.0,0.00024658,2]
[391807006,1760861432522,-150.75,0.00024684,2]
[391807009,1760861432531,-150.0,0.00024713,2]
[391807012,1760861432541,-209.0205087,0.00024768,2]
[391807015,1760861432550,-151.0,0.000248,7]
[391807018,1760861432559,-365.84,0.00024859,2]
[391807020,1760861432568,-162.76170033,0.000249,2]
[391807022,1760861432577,-500.0,0.00024932,2]
[391807024,1760861432587,-500.0,0.00024932,2]
[391807026,1760861432597,-1000.0,0.00024933,2]
[391807028,1760861432605,-817.0,0.00024963,2]
[391807030,1760861432615,-2547.0,0.00024963,2]